[Event "DVM U12w 2023"]
[Site "Magdeburg"]
[Date "2023.12.28"]
[Round "4"]
[White "Nikitina, Alisa"]
[Black "Gelbach, Julietta"]
[Result "0-1"]
[WhiteElo "1004"]
[BlackElo "887"]
[PlyCount "78"]
[EventDate "2022.12.27"]
[EventType "team-tourn"]
[EventRounds "7"]
[EventCountry "GER"]
[TimeControl "40/5400+30:1800+30"]
[WhiteClock "0:29:38"]
[BlackClock "1:16:40"]

1. e4 {[%emt 0:00:08]} e5 {[%emt 0:00:09]} 2. Nf3 {[%emt 0:00:09]} Nc6 {[%emt 0:00:07]} 3. Bc4 {[%emt 0:00:09]} Nf6 {[%emt 0:00:08]} 4. Ng5 {[%emt 0:00:36]} d5 {[%emt 0:00:15]} 5. exd5 {[%emt 0:00:14]} Nxd5 {[%emt 0:01:07]} 6. d3 {[%emt 0:00:21]} h6 {[%emt 0:00:18]} 7. Nf3 {[%emt 0:00:39]} Bg4 {[%emt 0:00:34]} 8. h3 {[%emt 0:00:29]} Bh5 {[%emt 0:00:22]} 9. g4 {[%emt 0:00:16]} Bg6 {[%emt 0:00:13]} 10. Be3 {[%emt 0:01:04]} Nxe3 {[%emt 0:01:47]} 11. fxe3 {[%emt 0:00:12]} e4 {[%emt 0:00:47]} 12. Nfd2 {[%emt 0:02:07]} exd3 {[%emt 0:00:27]} 13. cxd3 {[%emt 0:01:36]} Qh4+ {[%emt 0:00:35]} 14. Ke2 {[%emt 0:00:38]} O-O-O {[%emt 0:00:29]} 15. Qc2 {[%emt 0:02:38]} Nb4 {[%emt 0:01:09]} 16. Qb3 {[%emt 0:02:14]} Bxd3+ {[%emt 0:02:20]} 17. Bxd3 {[%emt 0:00:16]} Nxd3 {[%emt 0:00:58]} 18. Nc3 {[%emt 0:02:59]} Bb4 {[%emt 0:00:34]} 19. Qxf7 {[%emt 0:04:11]} Nxb2 {[%emt 0:01:55]} 20. Nd5 {[%emt 0:03:07]} Ba5 {[%emt 0:01:03]} 21. Ne7+ {[%emt 0:06:12]} Kb8 {[%emt 0:00:34]} 22. Qxg7 {[%emt 0:01:24]} Rxd2+ {[%emt 0:02:24]} 23. Kf3 {[%emt 0:02:55]} Rhd8 {[%emt 0:01:01]} 24. a3 {[%emt 0:02:58]} a6 {[%emt 0:02:01]} 25. Rab1 {[%emt 0:09:14]} Qf2+ {[%emt 0:01:55]} 26. Ke4 {[%emt 0:00:17]} Qg2+ {[%emt 0:00:32]} 27. Kf5 {[%emt 0:03:24]} Qf3+ {[%emt 0:01:57]} 28. Kg6 {[%emt 0:02:47]} R8d6+ {[%emt 0:00:53]} 29. Kh7 {[%emt 0:07:03]} Qe4+ {[%emt 0:01:00]} 30. Kg8 {[%emt 0:07:58]} Rd7 {[%emt 0:01:27]} 31. Rxb2 {[%emt 0:03:03]} Rxe7 {[%emt 0:00:56]} 32. Rf1 {[%emt 0:04:34]} Rxg7+ {[%emt 0:00:33]} 33. Kxg7 {[%emt 0:01:02]} Bc3+ {[%emt 0:00:33]} 34. Kxh6 {[%emt 0:00:30]} Bxb2 {[%emt 0:00:30]} 35. g5 {[%emt 0:00:30]} Qe5 {[%emt 0:00:30]} 36. g6 {[%emt 0:00:30]} Qg7+ {[%emt 0:00:30]} 37. Kh5 {[%emt 0:00:30]} Bf6 {[%emt 0:00:30]} 38. h4 {[%emt 0:00:31]} Rh2 {[%emt 0:00:08]} 39. e4 {[%emt 0:00:57]} Rxh4# {[%emt 0:00:09] normal} 0-1

[Event "DVM U12w 2023"]
[Site "Magdeburg"]
[Date "2023.12.28"]
[Round "4"]
[White "Wolf, Aurelia"]
[Black "Funke, Luise"]
[Result "0-1"]
[WhiteElo "1001"]
[BlackElo "1018"]
[PlyCount "44"]
[EventDate "2022.12.27"]
[EventType "team-tourn"]
[EventRounds "7"]
[EventCountry "GER"]
[TimeControl "40/5400+30:1800+30"]
[WhiteClock "1:28:47"]
[BlackClock "1:17:14"]

1. e4 {[%emt 0:00:02]} e5 {[%emt 0:00:05]} 2. Nf3 {[%emt 0:00:04]} Nc6 {[%emt 0:00:07]} 3. Bc4 {[%emt 0:00:03]} Bc5 {[%emt 0:00:06]} 4. c3 {[%emt 0:00:05]} Nf6 {[%emt 0:00:10]} 5. d4 {[%emt 0:00:07]} exd4 {[%emt 0:00:07]} 6. cxd4 {[%emt 0:00:08]} Bb4+ {[%emt 0:00:27]} 7. Nbd2 {[%emt 0:00:07]} Bxd2+ {[%emt 0:01:26]} 8. Bxd2 {[%emt 0:00:12]} d5 {[%emt 0:00:47]} 9. exd5 {[%emt 0:00:19]} Nxd5 {[%emt 0:00:11]} 10. O-O {[%emt 0:00:11]} Bg4 {[%emt 0:00:40]} 11. Bc3 {[%emt 0:00:55]} Qd7 {[%emt 0:01:16]} 12. Re1+ {[%emt 0:00:42]} Nce7 {[%emt 0:02:17]} 13. Qe2 {[%emt 0:01:41]} O-O-O {[%emt 0:05:22]} 14. Bxd5 {[%emt 0:00:32]} Nxd5 {[%emt 0:00:14]} 15. Rad1 {[%emt 0:00:41]} Rhe8 {[%emt 0:02:10]} 16. Qd3 {[%emt 0:01:25]} Nf4 {[%emt 0:02:58]} 17. Qxh7 {[%emt 0:01:00]} Bxf3 {[%emt 0:01:25]} 18. gxf3 {[%emt 0:00:28]} Nh3+ {[%emt 0:00:43]} 19. Kf1 {[%emt 0:00:34]} Ng5 {[%emt 0:02:29]} 20. Qxg7 {[%emt 0:02:31]} Qh3+ {[%emt 0:00:58]} 21. Kg1 {[%emt 0:00:39]} Nxf3+ {[%emt 0:00:10]} 22. Kh1 {[%emt 0:00:17]} Qxh2# {[%emt 0:00:08] normal} 0-1

[Event "DVM U12w 2023"]
[Site "Magdeburg"]
[Date "2023.12.28"]
[Round "4"]
[White "Yamshchikova, Oleksandra"]
[Black "Slowik, Anna"]
[Result "1-0"]
[WhiteElo "956"]
[BlackElo "842"]
[PlyCount "88"]
[EventDate "2022.12.27"]
[EventType "team-tourn"]
[EventRounds "7"]
[EventCountry "GER"]
[TimeControl "40/5400+30:1800+30"]
[WhiteClock "1:26:06"]
[BlackClock "1:17:26"]

1. e4 {[%emt 0:00:02]} e5 {[%emt 0:00:02]} 2. Nf3 {[%emt 0:00:08]} Nc6 {[%emt 0:00:12]} 3. Bc4 {[%emt 0:00:11]} Nf6 {[%emt 0:00:12]} 4. d3 {[%emt 0:00:20]} Bc5 {[%emt 0:00:26]} 5. Be3 {[%emt 0:00:15]} d6 {[%emt 0:00:56]} 6. Bxc5 {[%emt 0:00:17]} dxc5 {[%emt 0:00:33]} 7. Nc3 {[%emt 0:00:27]} O-O {[%emt 0:00:01]} 8. O-O {[%emt 0:00:19]} Bg4 {[%emt 0:00:09]} 9. h3 {[%emt 0:00:12]} Bh5 {[%emt 0:00:08]} 10. Qe2 {[%emt 0:00:42]} Nd4 {[%emt 0:00:44]} 11. Qe3 {[%emt 0:01:29]} Nxc2 {[%emt 0:01:29]} 12. Qxc5 {[%emt 0:01:01]} Nxa1 {[%emt 0:00:26]} 13. Rxa1 {[%emt 0:00:23]} Bxf3 {[%emt 0:00:50]} 14. gxf3 {[%emt 0:00:20]} Qd7 {[%emt 0:02:21]} 15. Kg2 {[%emt 0:00:25]} Nh5 {[%emt 0:00:58]} 16. Qxe5 {[%emt 0:00:35]} g6 {[%emt 0:01:55]} 17. Nd5 {[%emt 0:00:38]} c6 {[%emt 0:02:15]} 18. Ne7+ {[%emt 0:00:31]} Qxe7 {[%emt 0:01:44]} 19. Qxe7 {[%emt 0:00:13]} Nf4+ {[%emt 0:00:54]} 20. Kg3 {[%emt 0:00:49]} Nh5+ {[%emt 0:00:15]} 21. Kg4 {[%emt 0:00:41]} Rae8 {[%emt 0:00:20]} 22. Bxf7+ {[%emt 0:01:02]} Rxf7 {[%emt 0:00:15]} 23. Qxe8+ {[%emt 0:00:11]} Kg7 {[%emt 0:00:27]} 24. Qe5+ {[%emt 0:01:12]} Nf6+ {[%emt 0:00:27]} 25. Kg3 {[%emt 0:00:52]} Kh6 {[%emt 0:01:57]} 26. Qe6 {[%emt 0:01:07]} Nh5+ {[%emt 0:01:32]} 27. Kh2 {[%emt 0:00:51]} Rxf3 {[%emt 0:00:28]} 28. Kg2 {[%emt 0:01:13]} Nf4+ {[%emt 0:00:23]} 29. Kxf3 {[%emt 0:00:37]} Nxe6 {[%emt 0:00:12]} 30. Rd1 {[%emt 0:00:29]} Kg5 {[%emt 0:00:28]} 31. d4 {[%emt 0:00:23]} c5 {[%emt 0:00:25]} 32. d5 {[%emt 0:00:20]} Nd8 {[%emt 0:00:25]} 33. d6 {[%emt 0:00:23]} Kf6 {[%emt 0:00:13]} 34. d7 {[%emt 0:00:35]} Ke6 {[%emt 0:00:17]} 35. Rd5 {[%emt 0:00:45]} c4 {[%emt 0:00:19]} 36. Ke3 {[%emt 0:01:22]} b5 {[%emt 0:03:07]} 37. Kd4 {[%emt 0:00:51]} Nc6+ {[%emt 0:03:25]} 38. Kc5 {[%emt 0:00:45]} Nd8 {[%emt 0:00:16]} 39. Kxb5 {[%emt 0:00:39]} Ke7 {[%emt 0:00:44]} 40. Kxc4 {[%emt 0:00:28]} Nc6 {[%emt 0:00:21]} 41. a3 {[%emt 0:30:28]} Kd8 {[%emt 0:30:53]} 42. e5 {[%emt 0:00:43]} h5 {[%emt 0:00:30]} 43. e6 {[%emt 0:00:27]} Ne7 {[%emt 0:00:40]} 44. Kc5 {[%emt 0:00:43]} Nf5 {[%emt 0:01:33] normal} 1-0

[Event "DVM U12w 2023"]
[Site "Magdeburg"]
[Date "2023.12.28"]
[Round "4"]
[White "Rempel, Katharina"]
[Black "Bykov, Sophia"]
[Result "1-0"]
[WhiteElo "867"]
[BlackElo "914"]
[PlyCount "63"]
[EventDate "2022.12.27"]
[EventType "team-tourn"]
[EventRounds "7"]
[EventCountry "GER"]
[TimeControl "40/5400+30:1800+30"]

1. d4 {[%emt 0:00:01]} d5 {[%emt 0:00:07]} 2. Nc3 {[%emt 0:00:06]} Nf6 {[%emt 0:00:06]} 3. Bf4 {[%emt 0:00:02]} e6 {[%emt 0:00:14]} 4. f3 {[%emt 0:00:13]} Bb4 {[%emt 0:00:06]} 5. e3 {[%emt 0:00:36]} O-O {[%emt 0:00:13]} 6. g4 {[%emt 0:00:05]} Nbd7 {[%emt 0:01:36]} 7. h4 {[%emt 0:00:14]} h5 {[%emt 0:00:08]} 8. g5 {[%emt 0:00:14]} Nh7 {[%emt 0:01:20]} 9. Bd3 {[%emt 0:00:16]} g6 {[%emt 0:00:30]} 10. Nge2 {[%emt 0:00:33]} Nb6 {[%emt 0:00:32]} 11. Be5 {[%emt 0:00:32]} f6 {[%emt 0:00:38]} 12. Bf4 {[%emt 0:00:42]} fxg5 {[%emt 0:01:17]} 13. hxg5 {[%emt 0:00:17]} Nxg5 {[%emt 0:00:09]} 14. Bxg6 {[%emt 0:00:48]} Nxf3+ {[%emt 0:01:19]} 15. Kf1 {[%emt 0:00:16]} Nc4 {[%emt 0:00:55]} 16. Qd3 {[%emt 0:00:46]} Nxb2 {[%emt 0:01:01]} 17. Qb5 {[%emt 0:00:45]} a5 {[%emt 0:01:30]} 18. Rb1 {[%emt 0:02:02]} Bd7 {[%emt 0:01:17]} 19. Qxb7 {[%emt 0:00:59]} Nc4 {[%emt 0:01:06]} 20. Rxh5 {[%emt 0:00:37]} Ncd2+ {[%emt 0:00:47]} 21. Kf2 {[%emt 0:00:31]} Be8 {[%emt 0:03:57]} 22. Bh7+ {[%emt 0:00:59]} Kh8 {[%emt 0:01:53]} 23. Rh6 {[%emt 0:00:37]} Ng5 {[%emt 0:06:08]} 24. Rbh1 {[%emt 0:01:18]} Rf7 {[%emt 0:05:16]} 25. Bg6+ {[%emt 0:01:07]} Nh7 {[%emt 0:07:30]} 26. Bxh7 {[%emt 0:03:55]} c5 {[%emt 0:01:27]} 27. dxc5 {[%emt 0:00:28]} Rxb7 {[%emt 0:00:25]} 28. Be5+ {[%emt 0:00:25]} Rg7 {[%emt 0:00:27]} 29. Rg1 {[%emt 0:00:39]} Raa7 {[%emt 0:01:51]} 30. Nf4 {[%emt 0:02:26]} Raf7 {[%emt 0:00:44]} 31. Ke2 {[%emt 0:00:38]} Bxc3 {[%emt 0:07:55]} 32. Ng6# {[%emt 0:04:21] normal} 1-0

[Event "DVM U12w 2023"]
[Site "Magdeburg"]
[Date "2023.12.28"]
[Round "4"]
[White "Satheesh, Yazhini"]
[Black "Berger, Jennifer"]
[Result "0-1"]
[WhiteElo "859"]
[BlackElo "1210"]
[PlyCount "96"]
[EventDate "2022.12.27"]
[EventType "team-tourn"]
[EventRounds "7"]
[EventCountry "GER"]
[TimeControl "40/5400+30:1800+30"]
[WhiteClock "1:21:56"]
[BlackClock "1:27:50"]

1. e4 {[%emt 0:00:03]} e5 {[%emt 0:00:26]} 2. Nf3 {[%emt 0:00:14]} Nc6 {[%emt 0:00:16]} 3. Nc3 {[%emt 0:00:19]} Nf6 {[%emt 0:00:08]} 4. Bb5 {[%emt 0:00:26]} Bc5 {[%emt 0:01:39]} 5. d3 {[%emt 0:00:33]} h6 {[%emt 0:00:17]} 6. Bd2 {[%emt 0:00:20]} O-O {[%emt 0:00:17]} 7. O-O {[%emt 0:00:31]} d6 {[%emt 0:00:18]} 8. h3 {[%emt 0:00:40]} Be6 {[%emt 0:00:35]} 9. a3 {[%emt 0:00:41]} a6 {[%emt 0:00:17]} 10. Ba4 {[%emt 0:00:20]} b5 {[%emt 0:00:06]} 11. Bb3 {[%emt 0:00:22]} Bd7 {[%emt 0:01:26]} 12. Nd5 {[%emt 0:01:11]} Nd4 {[%emt 0:02:38]} 13. Nxd4 {[%emt 0:00:51]} Bxd4 {[%emt 0:00:12]} 14. Bc3 {[%emt 0:01:12]} Bxc3 {[%emt 0:00:17]} 15. Nxc3 {[%emt 0:00:20]} Bc6 {[%emt 0:02:13]} 16. Nd5 {[%emt 0:01:44]} Bb7 {[%emt 0:00:48]} 17. Qf3 {[%emt 0:00:42]} Nxd5 {[%emt 0:01:49]} 18. Bxd5 {[%emt 0:00:25]} Bxd5 {[%emt 0:00:41]} 19. exd5 {[%emt 0:00:18]} Re8 {[%emt 0:00:18]} 20. c4 {[%emt 0:01:11]} Qg5 {[%emt 0:01:20]} 21. Rfe1 {[%emt 0:01:54]} Rac8 {[%emt 0:01:44]} 22. Qe3 {[%emt 0:01:16]} Qxe3 {[%emt 0:01:44]} 23. Rxe3 {[%emt 0:00:31]} c6 {[%emt 0:00:20]} 24. dxc6 {[%emt 0:00:56]} Rxc6 {[%emt 0:00:17]} 25. cxb5 {[%emt 0:00:17]} axb5 {[%emt 0:00:23]} 26. d4 {[%emt 0:01:46]} Rc2 {[%emt 0:01:33]} 27. Rb1 {[%emt 0:00:51]} Rd2 {[%emt 0:00:36]} 28. dxe5 {[%emt 0:00:21]} Rxe5 {[%emt 0:00:12]} 29. Rxe5 {[%emt 0:00:20]} dxe5 {[%emt 0:00:08]} 30. Kf1 {[%emt 0:00:45]} f5 {[%emt 0:00:26]} 31. Ke1 {[%emt 0:00:35]} Rc2 {[%emt 0:00:12]} 32. g4 {[%emt 0:00:36]} f4 {[%emt 0:00:12]} 33. f3 {[%emt 0:01:47]} Kf7 {[%emt 0:00:12]} 34. h4 {[%emt 0:00:45]} Kg6 {[%emt 0:00:07]} 35. h5+ {[%emt 0:00:36]} Kg5 {[%emt 0:00:02]} 36. Kf1 {[%emt 0:01:07]} Kh4 {[%emt 0:00:09]} 37. Kg1 {[%emt 0:00:21]} Kg3 {[%emt 0:00:05]} 38. Rf1 {[%emt 0:00:49]} Rxb2 {[%emt 0:00:20]} 39. Kh1 {[%emt 0:00:17]} Rf2 {[%emt 0:00:42]} 40. Rxf2 {[%emt 0:01:16]} Kxf2 {[%emt 0:00:10]} 41. Kh2 {[%emt 0:30:10]} Kxf3 {[%emt 0:30:09]} 42. Kh3 {[%emt 0:00:49]} e4 {[%emt 0:00:07]} 43. Kh2 {[%emt 0:00:21]} Kf2 {[%emt 0:00:03]} 44. Kh1 {[%emt 0:00:19]} e3 {[%emt 0:00:08]} 45. Kh2 {[%emt 0:00:16]} e2 {[%emt 0:00:05]} 46. Kh3 {[%emt 0:00:14]} e1=Q {[%emt 0:00:05]} 47. Kh2 {[%emt 0:00:47]} Qg1+ {[%emt 0:00:17]} 48. Kh3 {[%emt 0:00:09]} Qh1# {[%emt 0:00:11] normal} 0-1

[Event "DVM U12w 2023"]
[Site "Magdeburg"]
[Date "2023.12.28"]
[Round "4"]
[White "Gelbach, Amelia"]
[Black "Trush, Diana"]
[Result "0-1"]
[WhiteElo "841"]
[BlackElo "980"]
[PlyCount "30"]
[EventDate "2022.12.27"]
[EventType "team-tourn"]
[EventRounds "7"]
[EventCountry "GER"]
[TimeControl "40/5400+30:1800+30"]
[WhiteClock "1:26:44"]
[BlackClock "1:18:33"]

1. e4 {[%emt 0:00:02]} e5 {[%emt 0:00:10]} 2. Nf3 {[%emt 0:00:06]} Nc6 {[%emt 0:00:06]} 3. Bc4 {[%emt 0:00:20]} Be7 {[%emt 0:00:13]} 4. d4 {[%emt 0:00:08]} exd4 {[%emt 0:06:11]} 5. Nxd4 {[%emt 0:00:12]} Nf6 {[%emt 0:07:15]} 6. Nc3 {[%emt 0:01:54]} O-O {[%emt 0:00:21]} 7. O-O {[%emt 0:00:11]} Nxe4 {[%emt 0:01:47]} 8. Nxe4 {[%emt 0:00:45]} d5 {[%emt 0:00:11]} 9. Nxc6 {[%emt 0:01:25]} bxc6 {[%emt 0:00:11]} 10. Re1 {[%emt 0:03:20]} Be6 {[%emt 0:01:01]} 11. Ng5 {[%emt 0:00:59]} dxc4 {[%emt 0:01:31]} 12. Nxe6 {[%emt 0:00:28]} fxe6 {[%emt 0:00:07]} 13. Qxd8 {[%emt 0:00:48]} Raxd8 {[%emt 0:00:09]} 14. Rxe6 {[%emt 0:00:19]} Rd1+ {[%emt 0:00:11]} 15. Re1 {[%emt 0:00:19]} Rxe1# {[%emt 0:00:03] normal} 0-1

[Event "DVM U12w 2023"]
[Site "Magdeburg"]
[Date "2023.12.28"]
[Round "4"]
[White "He, Siqi"]
[Black "Sauermann, Paula"]
[Result "1-0"]
[WhiteElo "812"]
[BlackElo "754"]
[PlyCount "101"]
[EventDate "2022.12.27"]
[EventType "team-tourn"]
[EventRounds "7"]
[EventCountry "GER"]
[TimeControl "40/5400+30:1800+30"]
[WhiteClock "1:35:15"]
[BlackClock "0:52:28"]

1. e4 {[%emt 0:00:01]} e5 {[%emt 0:00:07]} 2. Nf3 {[%emt 0:00:07]} Nc6 {[%emt 0:00:07]} 3. Bc4 {[%emt 0:00:06]} Bc5 {[%emt 0:00:16]} 4. O-O {[%emt 0:00:17]} d6 {[%emt 0:00:31]} 5. h3 {[%emt 0:00:12]} Bd7 {[%emt 0:01:58]} 6. Ng5 {[%emt 0:00:15]} Qxg5 {[%emt 0:01:16]} 7. d4 {[%emt 0:00:11]} Qg6 {[%emt 0:01:50]} 8. dxc5 {[%emt 0:00:08]} Bxh3 {[%emt 0:02:37]} 9. Qf3 {[%emt 0:00:56]} Qxg2+ {[%emt 0:07:17]} 10. Qxg2 {[%emt 0:00:29]} Bxg2 {[%emt 0:00:16]} 11. Kxg2 {[%emt 0:00:17]} dxc5 {[%emt 0:00:45]} 12. Nc3 {[%emt 0:00:17]} Nf6 {[%emt 0:01:55]} 13. Nb5 {[%emt 0:00:25]} Kd8 {[%emt 0:05:24]} 14. Rd1+ {[%emt 0:01:25]} Kc8 {[%emt 0:00:45]} 15. Bxf7 {[%emt 0:00:32]} Nxe4 {[%emt 0:01:39]} 16. Be6+ {[%emt 0:00:51]} Kb8 {[%emt 0:01:54]} 17. Rd7 {[%emt 0:01:34]} Rc8 {[%emt 0:05:36]} 18. Rxg7 {[%emt 0:00:41]} Re8 {[%emt 0:01:47]} 19. Bf5 {[%emt 0:00:50]} Ne7 {[%emt 0:02:51]} 20. Bxe4 {[%emt 0:00:53]} Rg8 {[%emt 0:01:44]} 21. Rxg8+ {[%emt 0:00:26]} Nxg8 {[%emt 0:00:16]} 22. Bxh7 {[%emt 0:00:12]} Nf6 {[%emt 0:00:38]} 23. f4 {[%emt 0:00:26]} exf4 {[%emt 0:00:58]} 24. Bxf4 {[%emt 0:00:08]} Nxh7 {[%emt 0:00:55]} 25. Nxc7 {[%emt 0:00:09]} a5 {[%emt 0:02:12]} 26. Nxa8+ {[%emt 0:00:11]} Kxa8 {[%emt 0:00:17]} 27. Rh1 {[%emt 0:00:16]} Nf6 {[%emt 0:00:52]} 28. Rh8+ {[%emt 0:00:21]} Ka7 {[%emt 0:00:13]} 29. Be5 {[%emt 0:00:32]} Nd7 {[%emt 0:00:53]} 30. Rh5 {[%emt 0:00:24]} b6 {[%emt 0:02:05]} 31. c4 {[%emt 0:00:30]} Ka6 {[%emt 0:01:22]} 32. Bc3 {[%emt 0:00:20]} b5 {[%emt 0:00:59]} 33. cxb5+ {[%emt 0:00:07]} Kxb5 {[%emt 0:00:13]} 34. a3 {[%emt 0:00:10]} a4 {[%emt 0:01:10]} 35. b4 {[%emt 0:00:12]} Kc4 {[%emt 0:01:08]} 36. bxc5 {[%emt 0:00:51]} Nxc5 {[%emt 0:00:27]} 37. Bf6 {[%emt 0:00:29]} Ne4 {[%emt 0:00:36]} 38. Be7 {[%emt 0:00:18]} Nd2 {[%emt 0:01:13]} 39. Rh4+ {[%emt 0:00:22]} Kb3 {[%emt 0:00:33]} 40. Rd4 {[%emt 0:00:22]} Nc4 {[%emt 0:00:58]} 41. Rd3+ {[%emt 0:31:13]} Ka2 {[%emt 0:30:46]} 42. Kf2 {[%emt 0:00:28]} Nxa3 {[%emt 0:00:16]} 43. Bxa3 {[%emt 0:00:09]} Kb1 {[%emt 0:00:48]} 44. Rd4 {[%emt 0:00:11]} Ka2 {[%emt 0:00:30]} 45. Rxa4 {[%emt 0:00:09]} Kb1 {[%emt 0:00:29]} 46. Bc1 {[%emt 0:00:22]} Kxc1 {[%emt 0:00:26]} 47. Ra2 {[%emt 0:00:05]} Kb1 {[%emt 0:00:25]} 48. Re2 {[%emt 0:00:13]} Kc1 {[%emt 0:00:10]} 49. Ke3 {[%emt 0:00:08]} Kd1 {[%emt 0:00:24]} 50. Rh2 {[%emt 0:00:04]} Ke1 {[%emt 0:00:15]} 51. Rh1# {[%emt 0:01:06] normal} 1-0

[Event "DVM U12w 2023"]
[Site "Magdeburg"]
[Date "2023.12.28"]
[Round "4"]
[White "Fissler, Lieselotte"]
[Black "Grey, Paula"]
[Result "0-1"]
[WhiteElo "786"]
[BlackElo "1008"]
[PlyCount "146"]
[EventDate "2022.12.27"]
[EventType "team-tourn"]
[EventRounds "7"]
[EventCountry "GER"]
[TimeControl "40/5400+30:1800+30"]

1. e4 {[%emt 0:00:03]} e5 {[%emt 0:00:07]} 2. Nf3 {[%emt 0:00:06]} Nc6 {[%emt 0:00:10]} 3. Bc4 {[%emt 0:00:06]} Bc5 {[%emt 0:00:20]} 4. d3 {[%emt 0:00:08]} Nf6 {[%emt 0:00:55]} 5. Nc3 {[%emt 0:00:14]} h6 {[%emt 0:01:30]} 6. Be3 {[%emt 0:00:15]} Bb6 {[%emt 0:00:36]} 7. Qd2 {[%emt 0:00:26]} d6 {[%emt 0:03:28]} 8. h3 {[%emt 0:00:12]} Be6 {[%emt 0:03:49]} 9. Bb3 {[%emt 0:00:14]} O-O {[%emt 0:00:26]} 10. O-O-O {[%emt 0:00:12]} Re8 {[%emt 0:02:10]} 11. g4 {[%emt 0:00:53]} Bxe3 {[%emt 0:05:39]} 12. Qxe3 {[%emt 0:00:28]} Nh7 {[%emt 0:02:54]} 13. Rdg1 {[%emt 0:01:16]} f6 {[%emt 0:02:30]} 14. h4 {[%emt 0:00:45]} a5 {[%emt 0:07:20]} 15. g5 {[%emt 0:00:41]} h5 {[%emt 0:02:16]} 16. gxf6 {[%emt 0:04:51]} Qxf6 {[%emt 0:03:18]} 17. Ng5 {[%emt 0:03:09]} Qh6 {[%emt 0:04:14]} 18. Bxe6+ {[%emt 0:01:33]} Rxe6 {[%emt 0:03:26]} 19. Nxe6 {[%emt 0:00:18]} Qxe6 {[%emt 0:02:54]} 20. Rg2 {[%emt 0:01:56]} Kh8 {[%emt 0:05:42]} 21. Rhg1 {[%emt 0:01:03]} Rg8 {[%emt 0:01:01]} 22. Rg6 {[%emt 0:01:25]} Qf7 {[%emt 0:04:15]} 23. Nd5 {[%emt 0:02:40]} Nb4 {[%emt 0:06:16]} 24. Nxb4 {[%emt 0:00:55]} axb4 {[%emt 0:00:36]} 25. b3 {[%emt 0:00:21]} Qf4 {[%emt 0:03:52]} 26. Qxf4 {[%emt 0:00:59]} exf4 {[%emt 0:00:54]} 27. f3 {[%emt 0:01:44]} Nf8 {[%emt 0:05:48]} 28. R6g5 {[%emt 0:00:38]} g6 {[%emt 0:01:38]} 29. d4 {[%emt 0:00:39]} Kh7 {[%emt 0:01:49]} 30. Kb2 {[%emt 0:01:48]} Ne6 {[%emt 0:01:11]} 31. Rd5 {[%emt 0:00:24]} Rd8 {[%emt 0:01:01]} 32. e5 {[%emt 0:01:23]} Kg7 {[%emt 0:02:07]} 33. exd6 {[%emt 0:00:53]} cxd6 {[%emt 0:04:20]} 34. Re1 {[%emt 0:00:49]} Kf6 {[%emt 0:01:19]} 35. Rb5 {[%emt 0:02:34]} Nxd4 {[%emt 0:05:29]} 36. Rxb7 {[%emt 0:00:28]} Nxf3 {[%emt 0:00:54]} 37. Rf1 {[%emt 0:00:30]} Nxh4 {[%emt 0:01:03]} 38. Rxf4+ {[%emt 0:00:13]} Kg5 {[%emt 0:00:47]} 39. Rbxb4 {[%emt 0:00:21]} Ng2 {[%emt 0:01:58]} 40. Rf2 {[%emt 0:00:53]} Ne3 {[%emt 0:01:39]} 41. Rb5+ {[%emt 0:30:36]} d5 {[%emt 0:31:47]} 42. Re2 {[%emt 0:01:13]} Kf4 {[%emt 0:00:38]} 43. Kc1 {[%emt 0:01:12]} h4 {[%emt 0:01:22]} 44. Rb7 {[%emt 0:00:50]} Rh8 {[%emt 0:02:38]} 45. Rf7+ {[%emt 0:02:22]} Ke4 {[%emt 0:00:52]} 46. Re7+ {[%emt 0:00:30]} Kf4 {[%emt 0:00:23]} 47. R7xe3 {[%emt 0:00:26]} g5 {[%emt 0:00:00]} 48. Kd2 {[%emt 0:00:00]} h3 {[%emt 0:00:00]} 49. Rh2 {[%emt 0:00:00]} g4 {[%emt 0:00:00]} 50. Rf2+ {[%emt 0:00:00]} Kg5 {[%emt 0:00:00]} 51. Rg3 {[%emt 0:00:00]} h2 {[%emt 0:00:00]} 52. Rxh2 {[%emt 0:00:00]} Rxh2+ {[%emt 0:00:00]} 53. Ke3 {[%emt 0:00:00]} Rxc2 {[%emt 0:00:00]} 54. Kd3 {[%emt 0:00:00]} Rxa2 {[%emt 0:00:00]} 55. Kd4 {[%emt 0:00:00]} Ra5 {[%emt 0:00:00]} 56. b4 {[%emt 0:00:00]} Ra4 {[%emt 0:00:00]} 57. Kc5 {[%emt 0:00:00]} Kf4 {[%emt 0:00:00]} 58. Rg1 {[%emt 0:00:00]} Kf3 {[%emt 0:00:00]} 59. b5 {[%emt 0:00:00]} g3 {[%emt 0:00:00]} 60. b6 {[%emt 0:00:00]} Re4 {[%emt 0:00:00]} 61. b7 {[%emt 0:00:00]} Re8 {[%emt 0:00:00]} 62. Kc6 {[%emt 0:00:00]} Kf2 {[%emt 0:00:00]} 63. Kxd5 {[%emt 0:00:00]} Kxg1 {[%emt 0:00:00]} 64. Kc6 {[%emt 0:00:00]} Kf2 {[%emt 0:00:00]} 65. Kc7 {[%emt 0:00:00]} g2 {[%emt 0:00:00]} 66. b8=Q {[%emt 0:00:00]} Rxb8 {[%emt 0:00:00]} 67. Kxb8 {[%emt 0:00:00]} g1=Q {[%emt 0:00:13]} 68. Ka8 {[%emt 0:00:00]} Qg7 {[%emt 0:00:00]} 69. Kb8 {[%emt 0:00:00]} Ke3 {[%emt 0:00:00]} 70. Ka8 {[%emt 0:00:00]} Ke4 {[%emt 0:00:00]} 71. Kb8 {[%emt 0:00:00]} Kd5 {[%emt 0:00:00]} 72. Ka8 {[%emt 0:00:00]} Kc6 {[%emt 0:00:00]} 73. Kb8 {[%emt 0:00:00]} Qb7# {[%emt 0:00:00] normal} 0-1

[Event "DVM U12w 2023"]
[Site "Magdeburg"]
[Date "2023.12.28"]
[Round "4"]
[White "Strahl, Nele"]
[Black "Goy, Isabella"]
[Result "0-1"]
[WhiteElo "783"]
[BlackElo "880"]
[PlyCount "58"]
[EventDate "2022.12.27"]
[EventType "team-tourn"]
[EventRounds "7"]
[EventCountry "GER"]
[TimeControl "40/5400+30:1800+30"]
[WhiteClock "1:15:47"]
[BlackClock "1:27:13"]

1. e4 {[%emt 0:00:03]} e5 {[%emt 0:00:09]} 2. Nf3 {[%emt 0:00:08]} Nc6 {[%emt 0:00:10]} 3. Bc4 {[%emt 0:00:13]} Nf6 {[%emt 0:00:17]} 4. Nc3 {[%emt 0:00:09]} Bc5 {[%emt 0:01:02]} 5. d3 {[%emt 0:00:14]} Na5 {[%emt 0:00:41]} 6. Nxe5 {[%emt 0:01:02]} Nxc4 {[%emt 0:00:33]} 7. Nxc4 {[%emt 0:00:36]} Bb4 {[%emt 0:00:25]} 8. O-O {[%emt 0:00:28]} Bxc3 {[%emt 0:00:19]} 9. bxc3 {[%emt 0:03:47]} d6 {[%emt 0:00:16]} 10. Re1 {[%emt 0:00:29]} O-O {[%emt 0:00:17]} 11. Bg5 {[%emt 0:00:36]} Be6 {[%emt 0:01:46]} 12. d4 {[%emt 0:01:47]} Bxc4 {[%emt 0:00:22]} 13. e5 {[%emt 0:01:47]} dxe5 {[%emt 0:00:40]} 14. dxe5 {[%emt 0:01:00]} Qxd1 {[%emt 0:00:14]} 15. Rexd1 {[%emt 0:00:30]} Ne4 {[%emt 0:00:50]} 16. Re1 {[%emt 0:02:20]} Nxg5 {[%emt 0:00:25]} 17. Re3 {[%emt 0:02:04]} Rfe8 {[%emt 0:00:25]} 18. Rb1 {[%emt 0:01:39]} b6 {[%emt 0:00:48]} 19. Rb2 {[%emt 0:01:18]} f6 {[%emt 0:00:36]} 20. Rg3 {[%emt 0:01:25]} Rxe5 {[%emt 0:00:13]} 21. f4 {[%emt 0:00:31]} Re1+ {[%emt 0:02:06]} 22. Kf2 {[%emt 0:00:27]} Rf1+ {[%emt 0:00:09]} 23. Ke3 {[%emt 0:00:43]} Ne6 {[%emt 0:01:09]} 24. h3 {[%emt 0:01:55]} Nxf4 {[%emt 0:00:42]} 25. Rg4 {[%emt 0:00:36]} Re8+ {[%emt 0:00:40]} 26. Kd4 {[%emt 0:00:18]} Be2 {[%emt 0:01:06]} 27. Rh4 {[%emt 0:00:39]} g5 {[%emt 0:00:44]} 28. Rh6 {[%emt 0:00:43]} Kg7 {[%emt 0:00:20]} 29. Rxf6 {[%emt 0:01:46]} Rd1# {[%emt 0:00:23] normal} 0-1